Cogmind - Beta 14 @@@ ROGUE MODE // 2024.09.11 @ 21:07:30 Player: SKIP Result: Self-destructed Performance ------------- Evolutions (2) 1000 Regions Visited (5) 1000 Robots Destroyed (53) 265 Value Destroyed (1006) 1006 Prototype IDs (27) 540 Alien Tech Used (0) 0 Bonus (377) 377 TOTAL SCORE: 4188 Bonus ------- Follower Combat Kills 110 Aligned with FarCom 300 Friendly Fire -33 Cogmind --------- Core Integrity 496/550 Matter 169/300 Energy 265/265 System Corruption 0% Temperature Cool (0) Movement Treading (160) Location -8/Materials Parts ------- > --- POWER (1) -------- Reinforced Ion Engine > --- PROPULSION (3) --- Light Treads Light Treads > --- UTILITY (5) ------ Improved Heat Sink Large Storage Unit Hacking Suite Hacking Suite > --- WEAPON (2) ------- Autogun Autogun > --- INVENTORY (15) --- Reinforced Ion Engine Makeshift Power Source Flight Unit Flight Unit Flight Unit Flight Unit VTOL Module Improved Heat Sink High-capacity Storage Unit Authchip [Propulsion] PSU Rigger Particle Gun Grenade Launcher Rocket Launcher Scythe Peak State ------------ > --- POWER ------------ Reinforced Ion Engine > --- PROPULSION ------- Aluminum Leg Aluminum Leg Improved Aluminum Leg > --- UTILITY ---------- Improved Heat Sink Large Storage Unit Medium Armor Plating Hacking Suite Hacking Suite > --- WEAPON ----------- Autogun Autogun > --- INVENTORY -------- Reinforced Ion Engine Makeshift Power Source Flight Unit Flight Unit Flight Unit Improved Heat Sink High-capacity Storage Unit Authchip [Propulsion] PSU Rigger Particle Gun Light Assault Rifle Grenade Launcher Rocket Launcher Plasma Cutter [Rating: 25] Favorites ----------- Power Reinforced Ion Engine Engine Reinforced Ion Engine Propulsion Light Treads Treads Light Treads Leg Aluminum Leg Utility Large Storage Unit Device Improved Terrain Scanner Storage Large Storage Unit Hackware Hacking Suite Protection Medium Armor Plating Weapon Autogun Energy Gun Particle Gun Ballistic Gun Autogun Launcher Rocket Launcher Special Weapon Plasma Cutter Build | -11 -10 -10 -10 -9 -8 ------- Run | Yrd Mat Min Exi Min Mat Slots Evolved 4 | . . . . . 4 Power . | . . . . . . Propulsion 1 | . . . . . 1 Utility 3 | . . . . . 3 Weapon . | . . . . . . Parts Attached 47 | 6 22 2 . 6 11 Power 5 | 1 3 . . 1 . Engine 5 | 1 3 . . 1 . Core . | . . . . . . Reactor . | . . . . . . Propulsion 13 | 2 5 1 . 1 4 Treads 9 | 2 5 . . . 2 Leg 4 | . . 1 . 1 2 Wheel . | . . . . . . Hover . | . . . . . . Flight . | . . . . . . Utility 10 | 1 5 . . 1 3 Device 3 | . 2 . . . 1 Storage 3 | 1 2 . . . . Processor . | . . . . . . Hackware 2 | . . . . 1 1 Protection 2 | . 1 . . . 1 Artifact . | . . . . . . Weapon 19 | 2 9 1 . 3 4 Energy Gun 1 | . . . . . 1 Energy Cannon . | . . . . . . Ballistic Gun 15 | 2 8 . . 3 2 Ballistic Cannon . | . . . . . . Launcher 2 | . . 1 . . 1 Special Weapon 1 | . 1 . . . . Impact Weapon . | . . . . . . Slashing Weapon . | . . . . . . Piercing Weapon . | . . . . . . Special Melee Weapon . | . . . . . . Unidentified Prototypes . | . . . . . . Parts Lost 11 | . 2 2 . 3 4 Power . | . . . . . . Propulsion 6 | . 1 1 . 1 3 Utility 3 | . 1 1 . . 1 Weapon 2 | . . . . 2 . Highest Loss Streak 3 | . 1 2 . 3 3 To Critical Strikes . | . . . . . . Average Slot Usage (%) 92 | . 96 95 85 91 94 Engine 13 | . 13 14 14 14 9 Treads 19 | . 27 24 14 . 4 Leg 7 | . . 3 14 22 18 Device 6 | . 10 10 . . 9 Storage 13 | . 14 14 14 14 9 Hackware 2 | . . . . 10 18 Protection 1 | . 2 . . . 8 Ballistic Gun 21 | . 26 24 14 28 12 Launcher 4 | . . 3 14 . . Peak Build Rating 25 | 7 14 15 12 15 25 Average Rating 12 | 5 10 13 12 13 23 On Entrance 10 | . 7 14 12 12 15 Naked Turns . | . . . . . . Heaviest Build 44 | 10 37 37 37 36 44 Greatest Support 40 | 40 40 40 20 20 40 Greatest Overweight (x) 7 | . 7 3 1 3 2 Average Overweight (x) . | . . . 1 1 1 Largest Inventory Capacity 15 | 8 15 15 15 15 15 Average Capacity 13 | 7 10 15 15 15 15 Most Carried 15 | 6 15 15 15 15 15 Average Carried 12 | 3 9 14 14 14 14 Final Capacity 15 | 8 15 15 15 15 15 Final Carried 15 | 6 15 14 15 15 15 Class Distribution -------------------- 89% | Mutant 9% | Scavenger-Mutant Dominant Class ---------------- Mutant | -10/Materials Mutant | -10/Mines Mutant | -10/Exiles Mutant | -9/Mines Scavenger-Mutant | -8/Materials Resources | -11 -10 -10 -10 -9 -8 ----------- Run | Yrd Mat Min Exi Min Mat Matter Collected 1129 | 294 336 160 . 194 145 Remotely . | . . . . . . Salvage Created 1370 | 114 531 208 . 78 439 Parts 94 | 11 40 11 . 10 22 Haulers Intercepted 4 | . 2 . . . 2 Recyclers Shooed 2 | . 1 . . . 1 Parts Field Recycled . | . . . . . . Retrieved Matter . | . . . . . . Parts Self-Destructed . | . . . . . . Prevented . | . . . . . . Kills | -11 -10 -10 -10 -9 -8 ------- Run | Yrd Mat Min Exi Min Mat Combat Hostiles Destroyed 31 | . 14 6 . 4 7 Guns 27 | . 14 5 . 4 4 AOE 4 | . . 1 . . 3 Classes Destroyed 15 | 1 7 1 . . 6 Worker 4 | . 1 . . . 3 Builder 1 | . . . . . 1 Tunneler 5 | 5 . . . . . Hauler 4 | . 2 . . . 2 Recycler 3 | . 1 1 . . 1 Operator 2 | . 2 . . . . Watcher 2 | . 2 . . . . Swarmer 14 | . 9 . . 3 2 Grunt 11 | . 5 4 . 1 1 Brawler 1 | . . . . . 1 Duelist 1 | . . . . . 1 Sentry 1 | . . . . . 1 Demolisher 2 | . . 2 . . . Hunter 1 | . . . . . 1 Zionite 1 | . . . . . 1 Best Kill Streak 9 | 2 6 3 . 2 9 Combat Bots Only 4 | . 3 2 . 2 4 Max Kills in Single Turn 3 | 1 2 2 . 1 3 Gunslinging 1 | . 1 . . . . Exploded 1 | . . 1 . . 1 Melee . | . . . . . . Uniques/NPCs Destroyed . | . . . . . . Combat | -11 -10 -10 -10 -9 -8 -------- Run | Yrd Mat Min Exi Min Mat Hostile Shots Fired 170 | . 60 24 . 47 39 Missed 29 | . 6 3 . 9 11 Damage Taken 1946 | . 546 528 . 313 559 Core 204 | . 54 61 . 35 54 Absorbed by Shields . | . . . . . . Regen/Repaired (Parts) 245 | . 245 . . . . Core Remaining (%) 70 | 100 . . . 40 . Volleys Fired 144 | 17 65 15 . 18 29 Largest 2 | 2 2 2 . 2 2 Hottest 98 | 40 46 56 . 46 98 Shots Fired 280 | 34 122 30 . 36 58 Gun 269 | 34 122 25 . 36 52 Cannon . | . . . . . . Launcher 11 | . . 5 . . 6 Special . | . . . . . . Kinetic 247 | 34 122 25 . 36 30 Thermal 22 | . . . . . 22 Explosive 11 | . . 5 . . 6 Electromagnetic . | . . . . . . Robot Hit Streak 13 | 12 13 7 . 5 7 Robot Miss Streak 10 | 5 3 3 . 10 3 Penetration Max . | . . . . . . Secondary Targets 2 | . 1 1 . . . Max Gunslinging Chain 1 | . 1 1 . . . Shots Hit Robots 169 | 23 76 17 . 15 38 Core Hits 87 | 10 34 15 . 5 23 Critical Kills 2 | . 1 1 . . . Critical Parts Destroyed 1 | . . . . . 1 Critical Strikes 3 | . 1 1 . . 1 Destroy 3 | . 1 1 . . 1 Melee Attacks . | . . . . . . Impact . | . . . . . . Slashing . | . . . . . . Piercing . | . . . . . . Sneak Attacks . | . . . . . . Combat Hostiles . | . . . . . . Follow-up Attacks . | . . . . . . Damage Inflicted 2689 | 188 905 339 . 258 999 Guns 1831 | 188 646 223 . 258 516 Cannons . | . . . . . . Explosions 844 | . 245 116 . . 483 Melee . | . . . . . . Ramming 14 | . 14 . . . . Kinetic 1664 | 188 646 223 . 258 349 Thermal 167 | . . . . . 167 Explosive 844 | . 245 116 . . 483 Electromagnetic . | . . . . . . Impact . | . . . . . . Slashing . | . . . . . . Piercing . | . . . . . . Highest Corruption . | . . . . . . Average Corruption . | . . . . . . Corruption Purged . | . . . . . . Corruption Blocked . | . . . . . . Overload Shots . | . . . . . . Overflow Damage 22 | . 21 . . . 1 Projectiles . | . . . . . . Explosions 22 | . 21 . . . 1 Melee . | . . . . . . Knockbacks . | . . . . . . Impact . | . . . . . . Kinetic . | . . . . . . Secondary . | . . . . . . Self-Inflicted Damage 211 | . 88 . . . 123 Shots 5 | . 1 . . . 4 Rammed 5 | . 5 . . . . Targets Rammed 6 | . 6 . . . . Kicked . | . . . . . . Crushed 1 | . 1 . . . . Highest Temperature 95 | . 29 95 . 50 53 Average Temperature 19 | . 9 40 . 24 17 Received Heat Transfer 330 | . 78 78 . 12 162 Siege Activations . | . . . . . . Robots Corrupted . | . . . . . . Combat Hostiles . | . . . . . . Parts Fried . | . . . . . . Impact Corruptions . | . . . . . . Robots Melted . | . . . . . . Combat Hostiles . | . . . . . . Parts Melted 2 | . . . . . 2 Heat Transferred 407 | . . . . . 407 Parts Sabotaged . | . . . . . . Parts Stolen . | . . . . . . Parts Stripped . | . . . . . . Power Chain Reactions . | . . . . . . Alert | -11 -10 -10 -10 -9 -8 ------- Run | Yrd Mat Min Exi Min Mat Peak Influence 251 | 25 233 64 . 70 251 Initial 27 | . 16 . . . 27 Average 52 | 11 49 49 . 59 90 Maximum Alert Level 1 | . 1 . . . 1 Low Security (%) 94 | 100 91 100 . 100 83 Level 1 5 | . 8 . . . 16 Level 2 . | . . . . . . Level 3 . | . . . . . . Level 4 . | . . . . . . Level 5 . | . . . . . . High Security . | . . . . . . Max Security . | . . . . . . Squads Dispatched 6 | . 2 . . 1 3 Investigation 1 | . . . . 1 . Extermination . | . . . . . . Reinforcement 3 | . 2 . . . 1 Assault . | . . . . . . Garrison 2 | . . . . . 2 Intercept . | . . . . . . Searches Triggered . | . . . . . . Construction Impeded . | . . . . . . Haulers Reinforced . | . . . . . . Active Scanning Responses . | . . . . . . Cargo Convoy Interrupts . | . . . . . . Stealth | -11 -10 -10 -10 -9 -8 --------- Run | Yrd Mat Min Exi Min Mat Distress Signals 7 | . 5 . . . 2 Communications Jammed . | . . . . . . Distress Signals . | . . . . . . Times Spotted 57 | . 30 6 . 5 16 Peak Tracking Total 5 | . 4 2 . 4 5 Tactical Retreats 3 | . 2 . . . 1 Traps | -11 -10 -10 -10 -9 -8 ------- Run | Yrd Mat Min Exi Min Mat Traps Triggered 3 | . 3 . . . . Indirectly . | . . . . . . Trap Hack Attempts . | . . . . . . Triggered . | . . . . . . Disarmed . | . . . . . . Reprogrammed . | . . . . . . Reused . | . . . . . . Traps Extracted . | . . . . . . Installed . | . . . . . . Triggered . | . . . . . . Machines | -11 -10 -10 -10 -9 -8 ---------- Run | Yrd Mat Min Exi Min Mat Machines Disabled 3 | . 3 . . . . Max in Single Turn 2 | . 2 . . . . Machines Repaired . | . . . . . . Machines Dismantled 1 | . 1 . . . . Machines Sabotaged . | . . . . . . Overloaded Fab Kills . | . . . . . . Hacking | -11 -10 -10 -10 -9 -8 --------- Run | Yrd Mat Min Exi Min Mat Machines Accessed 13 | . 6 . 5 1 1 Terminals 7 | . 5 . . 1 1 Fabricators . | . . . . . . Repair Stations 1 | . 1 . . . . Recycling Units . | . . . . . . Scanalyzers . | . . . . . . Garrison Access . | . . . . . . Total Hacks 74 | . 19 . 50 3 2 Successful 62 | . 10 . 50 . 2 Failed 12 | . 9 . . 3 . Catastrophic 2 | . 1 . . 1 . Database Lockouts . | . . . . . . Manual 12 | . 8 . 1 3 . Terminals 16 | . 11 . . 3 2 Fabricators . | . . . . . . Repair Stations 8 | . 8 . . . . Recycling Units . | . . . . . . Scanalyzers . | . . . . . . Garrison Access . | . . . . . . Terminal Hacks 56 | . 4 . 50 . 2 Record 49 | . . . 49 . . Prototype ID Bank 2 | . 1 . . . 1 Alert Level 2 | . 1 . . . 1 Unreport Threat 1 | . 1 . . . . Hauler Manifests 1 | . 1 . . . . Derelict Proto ID Bank 1 | . . . 1 . . Fabricator Hacks . | . . . . . . Repair Station Hacks 6 | . 6 . . . . Scan Component 3 | . 3 . . . . Repair 3 | . 3 . . . . Recycling Unit Hacks . | . . . . . . Scanalyzer . | . . . . . . Garrison Access Hacks . | . . . . . . Unauthorized Hacks . | . . . . . . Terminals . | . . . . . . Fabricators . | . . . . . . Repair Stations . | . . . . . . Recycling Units . | . . . . . . Scanalyzers . | . . . . . . Garrison Access . | . . . . . . Data Cores Recovered . | . . . . . . Used . | . . . . . . Hacking Detections 6 | . 4 . . 1 1 Full Trace Events 1 | . . . . 1 . Feedback Events . | . . . . . . Feedback Blocked . | . . . . . . Robot Schematics Acquired . | . . . . . . Robots Built . | . . . . . . Authchips . | . . . . . . Time . | . . . . . . Total Robot Build Rating . | . . . . . . Part Schematics Acquired . | . . . . . . Parts Built . | . . . . . . Authchips . | . . . . . . Time . | . . . . . . Total Part Build Rating . | . . . . . . Parts Repaired 3 | . 3 . . . . Time 78 | . 78 . . . . Parts Recycled . | . . . . . . Recycled Matter . | . . . . . . Retrieved Matter . | . . . . . . Retrieved Components . | . . . . . . Parts Scanalyzed . | . . . . . . Part Schematics Acquired . | . . . . . . Parts Damaged . | . . . . . . Bothacking | -11 -10 -10 -10 -9 -8 ------------ Run | Yrd Mat Min Exi Min Mat Used RIF Installer . | . . . . . . Robots Hacked . | . . . . . . Non-combat . | . . . . . . Combat . | . . . . . . Robot Hacks Applied . | . . . . . . Relay Couplers Released . | . . . . . . Fabnet Peak Effective % . | . . . . . . Robots Rewired . | . . . . . . Allies Hacked . | . . . . . . Hacks Repelled . | . . . . . . Allies | -11 -10 -10 -10 -9 -8 -------- Run | Yrd Mat Min Exi Min Mat Total Allies 2 | . . . . 2 . Largest Group 2 | . . . . 2 2 Highest-Rated Group 48 | . . . . 48 48 Highest-Rated Ally 31 | . . . . 31 31 Total Orders . | . . . . . . Ally Attacks 41 | . . . . . 41 Total Damage 538 | . . . . . 538 Kills 6 | . . . . . 6 Allies Corrupted . | . . . . . . Allies Melted . | . . . . . . Intel | -11 -10 -10 -10 -9 -8 ------- Run | Yrd Mat Min Exi Min Mat Robot Analysis Total . | . . . . . . Derelict Logs Recovered 1 | . . 1 . . . Drone Launches . | . . . . . . Drone Recoveries . | . . . . . . Exploration | -11 -10 -10 -10 -9 -8 ------------- Run | Yrd Mat Min Exi Min Mat Turns Passed 5857 | 317 2101 1193 1395 384 467 Spaces Moved 2736 | 161 1049 630 580 146 170 Core 9 | 8 1 . . . . Treads 2412 | 153 1048 622 580 . 9 Legs 315 | . . 8 . 146 161 Wheels . | . . . . . . Hover . | . . . . . . Flight . | . . . . . . Fastest Speed 50 | 50 160 160 240 190 160 Average Speed 186 | 154 160 176 240 215 212 Slowest Speed 400 | 160 400 330 240 330 260 Overloaded Moves . | . . . . . . Propulsion Burnouts . | . . . . . . Robots Hopped . | . . . . . . Cave-ins Triggered . | . . . . . . Exploration Rate (%) 56 | 9 98 96 94 21 18 Regions Visited 5 Branch Regions 3 Pre-discovered Areas 2 | . . 1 1 . . Known Exits Taken . | . . . . . . Unknown Exits Taken 5 | 1 1 1 1 1 . Scrap Searched 4 | . . 2 . 2 . Spaces Dug . | . . . . . . Terrain Destroyed 76 | . 15 20 . . 41 Melee . | . . . . . . Projectile . | . . . . . . AOE 76 | . 15 20 . . 41 Terrain Rammed . | . . . . . . Walls Destroyed . | . . . . . . Machines Disabled . | . . . . . . Actions | -11 -10 -10 -10 -9 -8 --------- Run | Yrd Mat Min Exi Min Mat Total 3243 | 202 1363 686 585 186 221 Wait 233 | 7 184 32 . 10 . Move 2731 | 160 1048 629 579 145 170 Hop . | . . . . . . Pick Up 54 | 12 22 4 3 5 8 Fast Attach 10 | . 8 . . 1 1 Attach 21 | 6 6 1 . 3 5 Detach . | . . . . . . Swap 16 | . 8 1 . 2 5 Drop 24 | . 13 4 2 2 3 Fire 144 | 17 65 15 . 18 29 Melee . | . . . . . . Ram . | . . . . . . Kick . | . . . . . . Crush 6 | . 6 . . . . Escape Stasis . | . . . . . . Rewire 1 | . . . 1 . . Trap . | . . . . . . Miscellaneous 3 | . 3 . . . . Route ------- -11/Scrapyard -10/Materials (discovered 6 exits: [*Mat x3] / [*Min x2] / [*Sub]) -10/Mines (discovered 3 exits: [*Mat] / *Exi / [Sub]) -10/Exiles (discovered 2 exits: *Min x2) -9/Mines -8/Materials History --------- Turn | Location | Event 5 | -11/Scrapyard | Discovered new exit (range 15) 318 | -11/Scrapyard | Entered Materials 319 | -10/Materials | Build established: Mutant 627 | -10/Materials | Discovered new exit (range 14) 940 | -10/Materials | Discovered new exit (range 6) 1116 | -10/Materials | Discovered new exit (range 16) 1474 | -10/Materials | Repaired Lgt. Treads 1502 | -10/Materials | Repaired Lgt. Assault Rifle 1697 | -10/Materials | Discovered new exit (range 16) 1880 | -10/Materials | Discovered new exit (range 6) 2200 | -10/Materials | Repaired Lgt. Treads 2411 | -10/Materials | Discovered new exit (range 9) 2419 | -10/Materials | Entered Mines 2541 | -10/Mines | Discovered new exit (range 10) 2641 | -10/Mines | Learned Materials emergency access door positions 2693 | -10/Mines | Assembled infested the area 2774 | -10/Mines | Received a Rocket Launcher from a helpful Derelict 2832 | -10/Mines | Discovered new exit (range 16) 2852 | -10/Mines | Learned location of Storage (-9) 3248 | -10/Mines | Deemed a non-threat by the Exiles lab entrance 3248 | -10/Mines | Discovered new exit (range 5) 3612 | -10/Mines | Entered Exiles 3672 | -10/Exiles | Met 8R-AWN 3711 | -10/Exiles | Met EX-HEX 3917 | -10/Exiles | Met EX-DEC 3959 | -10/Exiles | Visited The Gauntlet 4382 | -10/Exiles | Discovered new exit (range 14) 4526 | -10/Exiles | Learned location of Zion (-7) 4570 | -10/Exiles | Met EX-BIN 4613 | -10/Exiles | Aligned with FarCom system 4615 | -10/Exiles | Given EX-Vault access code 4716 | -10/Exiles | Opened EX-Vault 4729 | -10/Exiles | Found PSU Rigger 4786 | -10/Exiles | Warned to stay clear of 0b10 Research branches 4976 | -10/Exiles | Discovered new exit (range 14) 5007 | -10/Exiles | Left Exiles lab with PSU Rigger 5007 | -10/Exiles | Entered Mines 5016 | -9/Mines | Core integrity fell below 50% 5056 | -9/Mines | Lost 3 parts (1n2w) 5159 | -9/Mines | Discovered new exit (range 3) 5391 | -9/Mines | Entered Materials 5391 | -8/Materials | Accompanied by 2 allies 5391 | -8/Materials | Evolved 4 slots: Propulsion x1, Utility x3 5396 | -8/Materials | Led the pair of lost Derelicts to an unsafe place 5667 | -8/Materials | Garrison activated, responded to threat 5694 | -8/Materials | Build established: Scavenger-Mutant 5857 | -8/Materials | Lost 3 parts (2n1u) 5858 | -8/Materials | Self-destructed Last Messages --------------- 05843_ K-01 Serf collects debris. 05843_ U-05 Engineer lays Concrete. 05843_ U-05 Engineer builds a Wall. 05844_ K-01 Serf collects debris. 05844_ U-05 Engineer lays Concrete. 05846_ U-05 Engineer builds a Wall. 05847_ R-06 Scavenger collects Com. Wheel. 05848_ ALERT: Suspicious intruders detected, dispatching Specialist reinforcements to area. 05848_ U-05 Engineer lays Concrete. 05849_ K-01 Serf collects debris. 05849_ U-05 Engineer lays Concrete. 05850_ U-05 Engineer builds a Wall. 05853_ K-01 Serf collects debris. 05853_ R-06 Scavenger collects Aluminum Leg. 05854_ U-05 Engineer builds a Door. 05855_ Acquired Lgt. Treads. 05856_ U-05 Engineer builds a Wall. 05856_ R-06 Scavenger collects Wheel. 05857_ K-01 Serf collects debris. Map ----- +----------------------------------------------------+ | ???????# # !/ #??????????????????????????????? | | ???????# ########??????????????????????????????? | | ???????# #?????????????????????????????????????? | | ???????# #?????????????????????????????????????? | | ???????# #????????#????????????????????????????? | | ???????# #??????? #????????????????????????????? | | ???????# #??????? #????????????????????????????? | | ???????# #?????? #????????????????????????????? | | ######## #????? ?????????????????????????????? | | #???? ?????????????????????????????? | | #??? "Y"??????????????????????????????? | | #?? "????????????????????????????????? | | ####### ###+###########???????????????????????? | | ??????# ??????????????????????? | | ??????# ??????????????????????? | | ??????# ??????????????????????? | | ??????# ###############???????????????????????? | | ??????# #?????????????????????????????????????? | | ??????# # #?????????????????????????????? | | ??????# + #?????????????????????????????? | | ??????# # #?????????????????????????????? | | ??????# ############??????????????????????????? | | #+##### w## #######????????????????????? | | # """" =#*k ###+##### ##### ?????? | | # """" #% * k ????? | | """ + """ %%/r @ [* a ????? | | ## """ #% % #% * [ ????? | | ?# """ # [ %####### ###????????? | | ?# #* # /###???????????????????? | | ?# #= #u # ##??????x???????????? | | ## """ ########+ #ua # #??????????????????? | | """ ## + # ##??????????????????? | | ## """ ## #??????????x???????? | | ?# ## = ! # ##??????????????????? | | ?# ## #???????????????????? | | ?# /! ## """ """ w %*##???????????????????? | | ?+ ! ## """ """ # ##????????????????????? | | ?# !/ ## """ """ # #?????????????????????? | | ?# ## # ^ ?????????????????????? | | ?# ########### k #????????????????????? | | ?#########+#####??????? #????????????????????? | | ?????# #???????#%= ##????????????????????? | | ?????# * #??????? ! ?????????????????????? | | ?????# #??????? ?????????????????????? | | ?????# #???????# ?????????????????????? | | ?????# """" #???????+ ##????????????????????? | | ?????# """" #???????? #?????????????????????? | | ?????# """" #???????? #?????????????????????? | | ?????# #???????? ??????????????????????? | | ?????###########?????????????????????????????????? | +----------------------------------------------------+ Best States ------------- Heat Dissipation 45 Energy Generation 12 Energy Capacity 265 Matter Stores 300 Matter Capacity 300 Sight Range 16 Terrain Scan Range 16 Terrain Scan Density 10 Armor Coverage 225 Evasion (%) 40 Recoil Reduction 2 Offensive Hacking 20 Authchip Count 1 Item Schematics ----------------- None Robot Schematics ------------------ None Fabricated ------------ Nothing Alien Tech Used ----------------- None Achievements -------------- None Challenges ------------ None Game ------ Seed RemoteAccelerationFrame Manual? 0 Play Time 00:45:26 Cumulative 45.0 hours Start 2024.09.11 @ 20:15:40 End 2024.09.11 @ 21:07:30 Sessions 1 Manual Loads 0 Difficulty Rogue Special Mode None Game No. 76 Rogue 76 Adventurer 0 Explorer 0 Win Type - Total 0 Types 0/0/0/0/0/0/0/0/0 Lore% 39 Gallery% 30 Achievement% 26 Wizard Run 0 Options --------- Layout 1 ASCII 0 Keyboard 0 Movement Mouse Keybinds 0 Fullscreen 2 Font 24/Smallcaps Map View 50x35 Zoom Use 0% Tactical HUD 1 Map Filters NONE Filters NONE Steam 1 RUN: ba1488c5-3d31-460a-8205-3ef3782b4729